[Event "Titled Tuesday Blitz September 14 2021"]
[White "Rastbod, Ali"]
[Black "Zhurova, Anna"]
[WhiteFideId "12567477"]
[BlackFideId "54113075"]
[WhiteElo "2226"]
[BlackElo "1962"]
[Result "1/2-1/2"]
[Round "07"]
[TimeControl "180+1"]
[Date "2021.09.15"]
[WhiteClock "0:00:10"]
[BlackClock "0:00:15"]

1. c4 {[%clk 0:03:00]}  Nf6 {[%clk 0:02:59]} 2. Nc3 {[%clk 0:03:00]}  c5 {[%clk 0:02:59]} 3. g3 {[%clk 0:02:58]}  g6 {[%clk 0:02:59]} 4. Bg2 {[%clk 0:02:57]}  Bg7 {[%clk 0:02:59]} 5. Nf3 {[%clk 0:02:58]}  O-O {[%clk 0:02:59]} 6. O-O {[%clk 0:02:59]}  d5 {[%clk 0:02:59]} 7. cxd5 {[%clk 0:03:00]}  Nxd5 {[%clk 0:02:58]} 8. d3 {[%clk 0:03:00]}  Nc6 {[%clk 0:02:49]} 9. Bd2 {[%clk 0:02:52]}  e6 {[%clk 0:02:34]} 10. Rc1 {[%clk 0:02:50]}  b6 {[%clk 0:02:33]} 11. a3 {[%clk 0:02:40]}  Bb7 {[%clk 0:02:32]} 12. Nxd5 {[%clk 0:02:37]}  Qxd5 {[%clk 0:02:25]} 13. b4 {[%clk 0:02:30]}  cxb4 {[%clk 0:02:17]} 14. axb4 {[%clk 0:02:29]}  Rac8 {[%clk 0:02:06]} 15. Ne1 {[%clk 0:01:52]}  Qd7 {[%clk 0:01:59]} 16. Qa4 {[%clk 0:01:34]}  Rfd8 {[%clk 0:01:47]} 17. Kh1 {[%clk 0:01:00]}  Nd4 {[%clk 0:01:28]} 18. Qxd7 {[%clk 0:00:48]}  Rxd7 {[%clk 0:01:26]} 19. Rxc8+ {[%clk 0:00:39]}  Bxc8 {[%clk 0:01:26]} 20. Bf3 {[%clk 0:00:20]}  Nxf3 {[%clk 0:01:23]} 21. Nxf3 {[%clk 0:00:19]}  Bb7 {[%clk 0:01:23]} 22. Kg2 {[%clk 0:00:19]}  Rc7 {[%clk 0:01:21]} 23. Rc1 {[%clk 0:00:18]}  Rxc1 {[%clk 0:01:20]} 24. Bxc1 {[%clk 0:00:19]}  b5 {[%clk 0:01:21]} 25. e4 {[%clk 0:00:15]}  Bc3 {[%clk 0:01:20]} 26. Bd2 {[%clk 0:00:16]}  Bb2 {[%clk 0:01:18]} 27. Be3 {[%clk 0:00:12]}  a6 {[%clk 0:01:17]} 28. Bd4 {[%clk 0:00:11]}  Bc1 {[%clk 0:01:13]} 29. Kf1 {[%clk 0:00:08]}  f5 {[%clk 0:01:11]} 30. Be3 {[%clk 0:00:05]}  Bxe3 {[%clk 0:01:09]} 31. fxe3 {[%clk 0:00:06]}  fxe4 {[%clk 0:01:10]} 32. dxe4 {[%clk 0:00:07]}  Bxe4 {[%clk 0:01:10]} 33. Ng5 {[%clk 0:00:06]}  Bd5 {[%clk 0:01:10]} 34. e4 {[%clk 0:00:06]}  Bc4+ {[%clk 0:01:10]} 35. Kf2 {[%clk 0:00:06]}  Kg7 {[%clk 0:01:10]} 36. e5 {[%clk 0:00:05]}  h6 {[%clk 0:01:08]} 37. Ne4 {[%clk 0:00:06]}  g5 {[%clk 0:01:09]} 38. g4 {[%clk 0:00:05]}  Kg6 {[%clk 0:01:09]} 39. h3 {[%clk 0:00:06]}  h5 {[%clk 0:01:09]} 40. Nc5 {[%clk 0:00:04]}  hxg4 {[%clk 0:01:08]} 41. hxg4 {[%clk 0:00:05]}  Bd5 {[%clk 0:01:06]} 42. Nxa6 {[%clk 0:00:05]}  Kf7 {[%clk 0:01:03]} 43. Nc7 {[%clk 0:00:05]}  Bc6 {[%clk 0:01:01]} 44. Ke3 {[%clk 0:00:04]}  Ke7 {[%clk 0:01:02]} 45. Na6 {[%clk 0:00:04]}  Kd7 {[%clk 0:01:01]} 46. Nc5+ {[%clk 0:00:03]}  Ke7 {[%clk 0:01:02]} 47. Nd3 {[%clk 0:00:04]}  Bd5 {[%clk 0:01:01]} 48. Kd4 {[%clk 0:00:04]}  Bf3 {[%clk 0:01:00]} 49. Nf2 {[%clk 0:00:04]}  Kd7 {[%clk 0:00:58]} 50. Kc5 {[%clk 0:00:05]}  Be2 {[%clk 0:00:58]} 51. Ne4 {[%clk 0:00:04]}  Ke7 {[%clk 0:00:55]} 52. Nxg5 {[%clk 0:00:04]}  Bxg4 {[%clk 0:00:56]} 53. Kxb5 {[%clk 0:00:04]}  Kd7 {[%clk 0:00:51]} 54. Kc5 {[%clk 0:00:04]}  Kc7 {[%clk 0:00:49]} 55. b5 {[%clk 0:00:04]}  Bf5 {[%clk 0:00:47]} 56. b6+ {[%clk 0:00:04]}  Kb7 {[%clk 0:00:48]} 57. Nf7 {[%clk 0:00:05]}  Bh3 {[%clk 0:00:45]} 58. Nd6+ {[%clk 0:00:05]}  Kb8 {[%clk 0:00:45]} 59. Kc6 {[%clk 0:00:06]}  Bg2+ {[%clk 0:00:43]} 60. Kd7 {[%clk 0:00:05]}  Bd5 {[%clk 0:00:43]} 61. Ke7 {[%clk 0:00:04]}  Ba2 {[%clk 0:00:43]} 62. Kf7 {[%clk 0:00:04]}  Bb3 {[%clk 0:00:43]} 63. Kg6 {[%clk 0:00:05]}  Bd5 {[%clk 0:00:42]} 64. Kg5 {[%clk 0:00:06]}  Ba2 {[%clk 0:00:42]} 65. Kf4 {[%clk 0:00:06]}  Bd5 {[%clk 0:00:42]} 66. Ke3 {[%clk 0:00:07]}  Ba2 {[%clk 0:00:42]} 67. Kd4 {[%clk 0:00:08]}  Bd5 {[%clk 0:00:41]} 68. Kc5 {[%clk 0:00:09]}  Bg2 {[%clk 0:00:40]} 69. b7 {[%clk 0:00:09]}  Ka7 {[%clk 0:00:37]} 70. Kb5 {[%clk 0:00:06]}  Bxb7 {[%clk 0:00:35]} 71. Kc5 {[%clk 0:00:05]}  Bd5 {[%clk 0:00:31]} 72. Nb5+ {[%clk 0:00:05]}  Kb7 {[%clk 0:00:31]} 73. Kd6 {[%clk 0:00:05]}  Ba2 {[%clk 0:00:25]} 74. Nc7 {[%clk 0:00:06]}  Kc8 {[%clk 0:00:23]} 75. Nxe6 {[%clk 0:00:04]}  Bb3 {[%clk 0:00:22]} 76. Nf8 {[%clk 0:00:03]}  Kd8 {[%clk 0:00:19]} 77. Nd7 {[%clk 0:00:02]}  Ba2 {[%clk 0:00:18]} 78. Nc5 {[%clk 0:00:03]}  Bc4 {[%clk 0:00:18]} 79. Ne6+ {[%clk 0:00:03]}  Ke8 {[%clk 0:00:17]} 80. Nc7+ {[%clk 0:00:04]}  Kd8 {[%clk 0:00:17]} 81. Nd5 {[%clk 0:00:05]}  Bxd5 {[%clk 0:00:15]} 82. Kxd5 {[%clk 0:00:06]}  Kd7 {[%clk 0:00:15]} 83. e6+ {[%clk 0:00:06]}  Ke7 {[%clk 0:00:16]} 84. Ke5 {[%clk 0:00:07]}  Ke8 {[%clk 0:00:16]} 85. Kd6 {[%clk 0:00:08]}  Kd8 {[%clk 0:00:17]} 86. Kd5 {[%clk 0:00:09]}  Ke7 {[%clk 0:00:16]} 87. Ke5 {[%clk 0:00:10]}  Ke8 {[%clk 0:00:17]} 88. Kf5 {[%clk 0:00:11]}  Ke7 {[%clk 0:00:15]} 89. Ke5 {[%clk 0:00:10]} 1/2-1/2


[Site "https://www.chess.com"]

[Event "Titled Tuesday Blitz September 14 2021"]
[White "Sonis, Francesco"]
[Black "Nesterov, Arseniy"]
[WhiteFideId "895733"]
[BlackFideId "24198455"]
[WhiteElo "2373"]
[BlackElo "2494"]
[Result "0-1"]
[Round "07"]
[TimeControl "180+1"]
[Date "2021.09.15"]
[WhiteClock "0:01:20"]
[BlackClock "0:00:48"]

1. Nf3 {[%clk 0:03:00]}  d5 {[%clk 0:03:00]} 2. e3 {[%clk 0:02:59]}  Nf6 {[%clk 0:03:00]} 3. b3 {[%clk 0:02:59]}  Bf5 {[%clk 0:02:58]} 4. Bb2 {[%clk 0:02:58]}  e6 {[%clk 0:02:57]} 5. c4 {[%clk 0:02:58]}  c6 {[%clk 0:02:57]} 6. Be2 {[%clk 0:02:58]}  Be7 {[%clk 0:02:57]} 7. O-O {[%clk 0:02:59]}  O-O {[%clk 0:02:58]} 8. Nc3 {[%clk 0:03:00]}  h6 {[%clk 0:02:58]} 9. d3 {[%clk 0:02:58]}  Nbd7 {[%clk 0:02:57]} 10. Re1 {[%clk 0:02:59]}  a5 {[%clk 0:02:53]} 11. Bf1 {[%clk 0:02:59]}  Nc5 {[%clk 0:02:51]} 12. Nd4 {[%clk 0:02:51]}  Bg6 {[%clk 0:02:48]} 13. f4 {[%clk 0:02:51]}  Nfd7 {[%clk 0:02:37]} 14. Qc2 {[%clk 0:02:47]}  e5 {[%clk 0:02:22]} 15. fxe5 {[%clk 0:02:47]}  Nxe5 {[%clk 0:02:23]} 16. Rad1 {[%clk 0:02:47]}  dxc4 {[%clk 0:02:22]} 17. bxc4 {[%clk 0:02:46]}  Nxc4 {[%clk 0:02:21]} 18. Bc1 {[%clk 0:02:41]}  Ne5 {[%clk 0:02:16]} 19. Ne4 {[%clk 0:02:40]}  Nxe4 {[%clk 0:01:54]} 20. dxe4 {[%clk 0:02:41]}  Qc7 {[%clk 0:01:48]} 21. Bb2 {[%clk 0:02:38]}  Bh4 {[%clk 0:01:42]} 22. g3 {[%clk 0:02:37]}  Bf6 {[%clk 0:01:39]} 23. Be2 {[%clk 0:02:36]}  Rad8 {[%clk 0:01:33]} 24. Rf1 {[%clk 0:02:35]}  Bg5 {[%clk 0:01:28]} 25. Qc1 {[%clk 0:02:32]}  Bxe4 {[%clk 0:01:23]} 26. Kf2 {[%clk 0:02:20]}  Rfe8 {[%clk 0:01:20]} 27. h4 {[%clk 0:02:19]}  Bf6 {[%clk 0:01:18]} 28. Ba1 {[%clk 0:02:17]}  Qe7 {[%clk 0:01:13]} 29. Ke1 {[%clk 0:02:09]}  Ng6 {[%clk 0:01:01]} 30. Rf2 {[%clk 0:02:01]}  Be5 {[%clk 0:00:59]} 31. Nf5 {[%clk 0:01:43]}  Bxf5 {[%clk 0:00:57]} 32. Rxf5 {[%clk 0:01:44]}  Bxg3+ {[%clk 0:00:56]} 33. Kf1 {[%clk 0:01:45]}  Qxh4 {[%clk 0:00:55]} 34. Rh5 {[%clk 0:01:34]}  Qe4 {[%clk 0:00:51]} 35. Rxd8 {[%clk 0:01:29]}  Rxd8 {[%clk 0:00:51]} 36. Bc3 {[%clk 0:01:23]}  Rd5 {[%clk 0:00:48]} 37. Rxd5 {[%clk 0:01:20]}  Qh1# {[%clk 0:00:48]} 0-1


[Site "https://www.chess.com"]

[Event "Titled Tuesday Blitz September 14 2021"]
[White "Sviridov_Valery"]
[Black "Jobava, Baadur"]
[BlackFideId "13601520"]
[WhiteElo "2969"]
[BlackElo "2731"]
[Result "0-1"]
[Round "07"]
[TimeControl "180+1"]
[Date "2021.09.15"]
[WhiteClock "0:00:19"]
[BlackClock "0:00:24"]

1. Nf3 {[%clk 0:03:00]}  d5 {[%clk 0:02:59]} 2. g3 {[%clk 0:03:00]}  c6 {[%clk 0:02:59]} 3. Bg2 {[%clk 0:03:01]}  Nf6 {[%clk 0:03:00]} 4. O-O {[%clk 0:03:01]}  Bf5 {[%clk 0:03:01]} 5. c4 {[%clk 0:03:00]}  e6 {[%clk 0:03:01]} 6. cxd5 {[%clk 0:03:00]}  exd5 {[%clk 0:02:59]} 7. d3 {[%clk 0:03:01]}  Be7 {[%clk 0:02:59]} 8. Nc3 {[%clk 0:03:01]}  O-O {[%clk 0:02:59]} 9. Qb3 {[%clk 0:03:02]}  Qc8 {[%clk 0:02:59]} 10. e4 {[%clk 0:02:58]}  dxe4 {[%clk 0:02:58]} 11. dxe4 {[%clk 0:02:59]}  Be6 {[%clk 0:02:58]} 12. Qc2 {[%clk 0:02:58]}  Na6 {[%clk 0:02:58]} 13. a3 {[%clk 0:02:58]}  Rd8 {[%clk 0:02:56]} 14. b4 {[%clk 0:02:44]}  h6 {[%clk 0:02:54]} 15. Be3 {[%clk 0:02:39]}  Bh3 {[%clk 0:02:53]} 16. Rad1 {[%clk 0:02:36]}  Bxg2 {[%clk 0:02:53]} 17. Kxg2 {[%clk 0:02:37]}  Nc7 {[%clk 0:02:48]} 18. Nd4 {[%clk 0:02:36]}  Ne6 {[%clk 0:02:45]} 19. Nf5 {[%clk 0:02:36]}  Bf8 {[%clk 0:02:45]} 20. f3 {[%clk 0:02:34]}  Qc7 {[%clk 0:02:42]} 21. Ne2 {[%clk 0:02:32]}  a5 {[%clk 0:02:39]} 22. Qb3 {[%clk 0:02:26]}  axb4 {[%clk 0:02:38]} 23. axb4 {[%clk 0:02:27]}  h5 {[%clk 0:02:29]} 24. Nf4 {[%clk 0:02:05]}  Re8 {[%clk 0:02:24]} 25. Nxe6 {[%clk 0:02:04]}  Rxe6 {[%clk 0:02:25]} 26. Rf2 {[%clk 0:01:57]}  g6 {[%clk 0:02:21]} 27. Nd4 {[%clk 0:01:55]}  Ree8 {[%clk 0:02:21]} 28. Rfd2 {[%clk 0:01:54]}  Bg7 {[%clk 0:01:48]} 29. Qc4 {[%clk 0:01:50]}  Qc8 {[%clk 0:01:39]} 30. h3 {[%clk 0:01:37]}  Ra3 {[%clk 0:01:35]} 31. Bf2 {[%clk 0:01:37]}  Ra8 {[%clk 0:01:28]} 32. Nb3 {[%clk 0:01:34]}  Ra3 {[%clk 0:01:11]} 33. Nc5 {[%clk 0:01:32]}  b5 {[%clk 0:01:10]} 34. Qc1 {[%clk 0:01:28]}  Qa8 {[%clk 0:00:58]} 35. h4 {[%clk 0:01:17]}  Bh6 {[%clk 0:00:58]} 36. f4 {[%clk 0:01:05]}  Bf8 {[%clk 0:00:57]} 37. Nd7 {[%clk 0:00:50]}  Nxe4 {[%clk 0:00:55]} 38. Re2 {[%clk 0:00:51]}  c5 {[%clk 0:00:54]} 39. Kh2 {[%clk 0:00:50]}  Bg7 {[%clk 0:00:47]} 40. Nxc5 {[%clk 0:00:47]}  Nxf2 {[%clk 0:00:44]} 41. Rxf2 {[%clk 0:00:46]}  Ree3 {[%clk 0:00:40]} 42. Rg2 {[%clk 0:00:46]}  Bf6 {[%clk 0:00:36]} 43. Nd7 {[%clk 0:00:31]}  Bg7 {[%clk 0:00:31]} 44. Nb6 {[%clk 0:00:30]}  Qe4 {[%clk 0:00:29]} 45. Nd5 {[%clk 0:00:30]}  Re2 {[%clk 0:00:27]} 46. Qc8+ {[%clk 0:00:18]}  Kh7 {[%clk 0:00:26]} 47. Qh3 {[%clk 0:00:19]}  Raa2 {[%clk 0:00:24]} 0-1


[Site "https://www.chess.com"]

[Event "Titled Tuesday Blitz September 14 2021"]
[White "Visakh N R"]
[Black "Sargsyan, Anna M."]
[WhiteFideId "25012223"]
[BlackFideId "13308130"]
[WhiteElo "2454"]
[BlackElo "2263"]
[Result "1-0"]
[Round "07"]
[TimeControl "180+1"]
[Date "2021.09.15"]
[WhiteClock "0:00:04"]
[BlackClock "0:00:03"]

1. d4 {[%clk 0:02:53]}  d5 {[%clk 0:02:59]} 2. c4 {[%clk 0:02:53]}  c6 {[%clk 0:02:58]} 3. Nc3 {[%clk 0:02:48]}  Nf6 {[%clk 0:02:58]} 4. e3 {[%clk 0:02:47]}  e6 {[%clk 0:02:56]} 5. Nf3 {[%clk 0:02:47]}  Nbd7 {[%clk 0:02:55]} 6. b3 {[%clk 0:02:45]}  Bb4 {[%clk 0:02:54]} 7. Bd2 {[%clk 0:02:45]}  O-O {[%clk 0:02:54]} 8. Qc2 {[%clk 0:02:43]}  b6 {[%clk 0:02:50]} 9. Bd3 {[%clk 0:02:41]}  Bb7 {[%clk 0:02:49]} 10. O-O {[%clk 0:02:41]}  Rc8 {[%clk 0:02:49]} 11. Nxd5 {[%clk 0:02:37]}  Nxd5 {[%clk 0:02:42]} 12. cxd5 {[%clk 0:02:37]}  cxd5 {[%clk 0:02:40]} 13. Qb1 {[%clk 0:02:34]}  Bxd2 {[%clk 0:02:38]} 14. Nxd2 {[%clk 0:02:34]}  Nf6 {[%clk 0:02:36]} 15. Qb2 {[%clk 0:02:32]}  Qd7 {[%clk 0:02:26]} 16. Qa3 {[%clk 0:02:25]}  a5 {[%clk 0:02:25]} 17. Nf3 {[%clk 0:02:23]}  Rc3 {[%clk 0:02:22]} 18. Ne5 {[%clk 0:02:20]}  Qc7 {[%clk 0:02:21]} 19. Rad1 {[%clk 0:02:07]}  Rc8 {[%clk 0:02:20]} 20. f4 {[%clk 0:02:06]}  b5 {[%clk 0:02:00]} 21. Qb2 {[%clk 0:01:54]}  Ne4 {[%clk 0:01:55]} 22. Qe2 {[%clk 0:01:42]}  b4 {[%clk 0:01:48]} 23. f5 {[%clk 0:01:38]}  f6 {[%clk 0:01:44]} 24. Ng4 {[%clk 0:01:32]}  exf5 {[%clk 0:01:44]} 25. Rxf5 {[%clk 0:01:31]}  Qe7 {[%clk 0:01:35]} 26. Rff1 {[%clk 0:01:04]}  Qe6 {[%clk 0:01:21]} 27. Nf2 {[%clk 0:00:58]}  Nd6 {[%clk 0:01:15]} 28. Nh3 {[%clk 0:00:53]}  Re8 {[%clk 0:01:14]} 29. Rde1 {[%clk 0:00:52]}  Ne4 {[%clk 0:01:07]} 30. Nf4 {[%clk 0:00:50]}  Qd6 {[%clk 0:01:00]} 31. Qh5 {[%clk 0:00:47]}  Re7 {[%clk 0:00:52]} 32. h4 {[%clk 0:00:41]}  Bc6 {[%clk 0:00:43]} 33. Qf5 {[%clk 0:00:32]}  Rxd3 {[%clk 0:00:19]} 34. Nxd3 {[%clk 0:00:32]}  Ng3 {[%clk 0:00:20]} 35. Qf4 {[%clk 0:00:30]}  Qxf4 {[%clk 0:00:17]} 36. Rxf4 {[%clk 0:00:31]}  Ne4 {[%clk 0:00:17]} 37. Rc1 {[%clk 0:00:26]}  Nc3 {[%clk 0:00:18]} 38. Kf2 {[%clk 0:00:13]}  Bb5 {[%clk 0:00:18]} 39. Nc5 {[%clk 0:00:12]}  Ne2 {[%clk 0:00:16]} 40. Re1 {[%clk 0:00:09]}  Nc3 {[%clk 0:00:14]} 41. h5 {[%clk 0:00:07]}  Kf7 {[%clk 0:00:14]} 42. Rf5 {[%clk 0:00:06]}  g6 {[%clk 0:00:10]} 43. hxg6+ {[%clk 0:00:06]}  hxg6 {[%clk 0:00:11]} 44. Rf4 {[%clk 0:00:07]}  g5 {[%clk 0:00:12]} 45. Rf5 {[%clk 0:00:07]}  Kg6 {[%clk 0:00:12]} 46. g4 {[%clk 0:00:08]}  a4 {[%clk 0:00:09]} 47. bxa4 {[%clk 0:00:06]}  Bc4 {[%clk 0:00:10]} 48. Rh1 {[%clk 0:00:06]}  Nxa2 {[%clk 0:00:05]} 49. Rh8 {[%clk 0:00:06]}  Nc3 {[%clk 0:00:06]} 50. Rg8+ {[%clk 0:00:06]}  Kf7 {[%clk 0:00:06]} 51. Rb8 {[%clk 0:00:05]}  Nd1+ {[%clk 0:00:06]} 52. Kg3 {[%clk 0:00:04]}  Nxe3 {[%clk 0:00:07]} 53. Rf3 {[%clk 0:00:04]}  Nc2 {[%clk 0:00:07]} 54. Rb6 {[%clk 0:00:03]}  Nxd4 {[%clk 0:00:07]} 55. Rfxf6+ {[%clk 0:00:04]}  Kg7 {[%clk 0:00:07]} 56. Rg6+ {[%clk 0:00:04]}  Kh7 {[%clk 0:00:08]} 57. Rh6+ {[%clk 0:00:04]}  Kg7 {[%clk 0:00:08]} 58. Rbg6+ {[%clk 0:00:05]}  Kf7 {[%clk 0:00:09]} 59. Rf6+ {[%clk 0:00:05]}  Kg7 {[%clk 0:00:10]} 60. Rhg6+ {[%clk 0:00:06]}  Kh7 {[%clk 0:00:10]} 61. Rxg5 {[%clk 0:00:06]}  Ne2+ {[%clk 0:00:09]} 62. Kh4 {[%clk 0:00:06]}  b3 {[%clk 0:00:09]} 63. Ne6 {[%clk 0:00:05]}  Rxe6 {[%clk 0:00:07]} 64. Rxe6 {[%clk 0:00:05]}  Nd4 {[%clk 0:00:08]} 65. Re7+ {[%clk 0:00:04]}  Kh6 {[%clk 0:00:09]} 66. Rb7 {[%clk 0:00:03]}  Nf3+ {[%clk 0:00:08]} 67. Kg3 {[%clk 0:00:04]}  Nxg5 {[%clk 0:00:09]} 68. a5 {[%clk 0:00:04]}  Ne4+ {[%clk 0:00:09]} 69. Kf4 {[%clk 0:00:04]}  Nc5 {[%clk 0:00:09]} 70. g5+ {[%clk 0:00:04]}  Kg6 {[%clk 0:00:10]} 71. Rb6+ {[%clk 0:00:04]}  Kf7 {[%clk 0:00:09]} 72. Kf5 {[%clk 0:00:05]}  Na4 {[%clk 0:00:07]} 73. Rb7+ {[%clk 0:00:04]}  Kf8 {[%clk 0:00:07]} 74. Kf6 {[%clk 0:00:04]}  Ke8 {[%clk 0:00:03]} 75. g6 {[%clk 0:00:04]}  d4 {[%clk 0:00:03]} 76. g7 {[%clk 0:00:04]}  b2 {[%clk 0:00:03]} 77. a6 {[%clk 0:00:04]}  Nc5 {[%clk 0:00:02]} 78. Rb8+ {[%clk 0:00:04]}  Kd7 {[%clk 0:00:02]} 79. a7 {[%clk 0:00:04]}  Nb3 {[%clk 0:00:02]} 80. Rxb3 {[%clk 0:00:04]}  Bxb3 {[%clk 0:00:02]} 81. a8=Q {[%clk 0:00:04]}  b1=Q {[%clk 0:00:02]} 82. Qb7+ {[%clk 0:00:05]}  Kd6 {[%clk 0:00:02]} 83. Qb6+ {[%clk 0:00:04]}  Kd7 {[%clk 0:00:01]} 84. Qb5+ {[%clk 0:00:05]}  Kd6 {[%clk 0:00:02]} 85. Qe5+ {[%clk 0:00:04]}  Kd7 {[%clk 0:00:03]} 86. Qf5+ {[%clk 0:00:05]}  Kc7 {[%clk 0:00:03]} 87. Qxb1 {[%clk 0:00:04]} 1-0


[Site "https://www.chess.com"]

[Event "Titled Tuesday Blitz September 14 2021"]
[White "Aldokhin, Ivan"]
[Black "Khanin, Semen"]
[WhiteFideId "24115720"]
[BlackFideId "4111990"]
[WhiteElo "2265"]
[BlackElo "2449"]
[Result "0-1"]
[Round "08"]
[TimeControl "180+1"]
[Date "2021.09.15"]
[WhiteClock "0:00:04"]
[BlackClock "0:01:07"]

1. e4 {[%clk 0:02:57]}  c6 {[%clk 0:02:58]} 2. Nc3 {[%clk 0:02:57]}  d5 {[%clk 0:02:58]} 3. Nf3 {[%clk 0:02:57]}  dxe4 {[%clk 0:02:58]} 4. Nxe4 {[%clk 0:02:57]}  Nf6 {[%clk 0:02:58]} 5. Nxf6+ {[%clk 0:02:50]}  exf6 {[%clk 0:02:58]} 6. d4 {[%clk 0:02:50]}  Bd6 {[%clk 0:02:58]} 7. Bc4 {[%clk 0:02:49]}  O-O {[%clk 0:02:57]} 8. O-O {[%clk 0:02:48]}  Na6 {[%clk 0:02:57]} 9. h3 {[%clk 0:02:46]}  Nc7 {[%clk 0:02:57]} 10. Re1 {[%clk 0:02:24]}  a5 {[%clk 0:02:57]} 11. a4 {[%clk 0:02:21]}  Nd5 {[%clk 0:02:51]} 12. Bd3 {[%clk 0:01:56]}  Bc7 {[%clk 0:02:49]} 13. c3 {[%clk 0:01:49]}  Qd6 {[%clk 0:02:48]} 14. Qc2 {[%clk 0:01:33]}  h6 {[%clk 0:02:47]} 15. b3 {[%clk 0:01:33]}  Rd8 {[%clk 0:02:28]} 16. Ba3 {[%clk 0:01:22]}  Qd7 {[%clk 0:02:25]} 17. Nh4 {[%clk 0:01:13]}  Bd6 {[%clk 0:02:19]} 18. Bc1 {[%clk 0:01:01]}  Qc7 {[%clk 0:02:15]} 19. Nf5 {[%clk 0:00:55]}  Bxf5 {[%clk 0:02:15]} 20. Bxf5 {[%clk 0:00:55]}  Re8 {[%clk 0:02:15]} 21. Bd2 {[%clk 0:00:55]}  Bh2+ {[%clk 0:02:09]} 22. Kf1 {[%clk 0:00:54]}  Bf4 {[%clk 0:02:08]} 23. Rxe8+ {[%clk 0:00:46]}  Rxe8 {[%clk 0:02:07]} 24. Re1 {[%clk 0:00:46]}  Rxe1+ {[%clk 0:02:06]} 25. Bxe1 {[%clk 0:00:45]}  g6 {[%clk 0:02:05]} 26. Be4 {[%clk 0:00:42]}  Kg7 {[%clk 0:02:03]} 27. Qd3 {[%clk 0:00:39]}  Bd6 {[%clk 0:02:02]} 28. c4 {[%clk 0:00:37]}  Nb4 {[%clk 0:02:01]} 29. Qf3 {[%clk 0:00:37]}  f5 {[%clk 0:02:00]} 30. Bb1 {[%clk 0:00:34]}  Be7 {[%clk 0:02:00]} 31. Bc3 {[%clk 0:00:32]}  Bf6 {[%clk 0:02:00]} 32. g4 {[%clk 0:00:32]}  fxg4 {[%clk 0:01:59]} 33. hxg4 {[%clk 0:00:32]}  Qd6 {[%clk 0:01:56]} 34. Be4 {[%clk 0:00:28]}  Bxd4 {[%clk 0:01:53]} 35. Bd2 {[%clk 0:00:21]}  Be5 {[%clk 0:01:44]} 36. Be3 {[%clk 0:00:19]}  Na2 {[%clk 0:01:37]} 37. c5 {[%clk 0:00:14]}  Qe6 {[%clk 0:01:36]} 38. Bd3 {[%clk 0:00:10]}  Qxb3 {[%clk 0:01:31]} 39. Qe4 {[%clk 0:00:10]}  Bf6 {[%clk 0:01:25]} 40. Bc4 {[%clk 0:00:03]}  Qd1+ {[%clk 0:01:25]} 41. Kg2 {[%clk 0:00:04]}  Nc3 {[%clk 0:01:26]} 42. Qf4 {[%clk 0:00:04]}  g5 {[%clk 0:01:24]} 43. Qf5 {[%clk 0:00:04]}  Qxa4 {[%clk 0:01:19]} 44. Bd3 {[%clk 0:00:04]}  Nd5 {[%clk 0:01:14]} 45. Qh7+ {[%clk 0:00:02]}  Kf8 {[%clk 0:01:15]} 46. Qxh6+ {[%clk 0:00:03]}  Ke7 {[%clk 0:01:15]} 47. Bf5 {[%clk 0:00:03]}  Nxe3+ {[%clk 0:01:14]} 48. fxe3 {[%clk 0:00:03]}  Qa2+ {[%clk 0:01:14]} 49. Kf3 {[%clk 0:00:03]}  Qd5+ {[%clk 0:01:14]} 50. Kf2 {[%clk 0:00:03]}  Qxc5 {[%clk 0:01:13]} 51. Qh7 {[%clk 0:00:03]}  a4 {[%clk 0:01:13]} 52. Bg6 {[%clk 0:00:03]}  Qd5 {[%clk 0:01:13]} 53. Be4 {[%clk 0:00:03]}  Qd2+ {[%clk 0:01:11]} 54. Kf3 {[%clk 0:00:03]}  a3 {[%clk 0:01:12]} 55. Qf5 {[%clk 0:00:04]}  a2 {[%clk 0:01:08]} 56. Qc5+ {[%clk 0:00:04]}  Qd6 {[%clk 0:01:08]} 57. Qa7 {[%clk 0:00:03]}  a1=Q {[%clk 0:01:08]} 58. Qxb7+ {[%clk 0:00:04]}  Kf8 {[%clk 0:01:08]} 59. Qc8+ {[%clk 0:00:03]}  Kg7 {[%clk 0:01:08]} 60. Qf5 {[%clk 0:00:04]}  Qf1# {[%clk 0:01:07]} 0-1


[Site "https://www.chess.com"]

[Event "Titled Tuesday Blitz September 14 2021"]
[White "Coto Mederos, Michel"]
[Black "Suleymanli, Aydin"]
[WhiteFideId "3508528"]
[BlackFideId "13413937"]
[WhiteElo "2427"]
[BlackElo "2506"]
[Result "0-1"]
[Round "08"]
[TimeControl "180+1"]
[Date "2021.09.15"]
[WhiteClock "0:00:12"]
[BlackClock "0:00:09"]

1. c4 {[%clk 0:03:00]}  e5 {[%clk 0:02:55]} 2. Nc3 {[%clk 0:03:00]}  Nc6 {[%clk 0:02:56]} 3. g3 {[%clk 0:02:59]}  Bc5 {[%clk 0:02:56]} 4. Bg2 {[%clk 0:03:00]}  d6 {[%clk 0:02:56]} 5. e3 {[%clk 0:03:00]}  h5 {[%clk 0:02:55]} 6. h4 {[%clk 0:02:58]}  Bg4 {[%clk 0:02:51]} 7. Nge2 {[%clk 0:02:58]}  Nf6 {[%clk 0:02:45]} 8. b3 {[%clk 0:02:53]}  Qd7 {[%clk 0:02:36]} 9. Bb2 {[%clk 0:02:51]}  Qf5 {[%clk 0:02:34]} 10. a3 {[%clk 0:02:11]}  Bf3 {[%clk 0:01:07]} 11. Bh3 {[%clk 0:02:08]}  Ng4 {[%clk 0:01:03]} 12. Rf1 {[%clk 0:02:08]}  Nd4 {[%clk 0:00:56]} 13. e4 {[%clk 0:01:22]}  Nxf2 {[%clk 0:00:40]} 14. Kxf2 {[%clk 0:00:32]}  Qxh3 {[%clk 0:00:35]} 15. Ke1 {[%clk 0:00:26]}  Bg2 {[%clk 0:00:25]} 16. Nxd4 {[%clk 0:00:17]}  Qxg3+ {[%clk 0:00:21]} 17. Rf2 {[%clk 0:00:17]}  Bxd4 {[%clk 0:00:21]} 18. Qe2 {[%clk 0:00:15]}  c6 {[%clk 0:00:17]} 19. d3 {[%clk 0:00:15]}  Bh3 {[%clk 0:00:13]} 20. Nd1 {[%clk 0:00:15]}  Bg4 {[%clk 0:00:08]} 21. Qf1 {[%clk 0:00:13]}  Bxf2+ {[%clk 0:00:08]} 22. Nxf2 {[%clk 0:00:14]}  Qe3+ {[%clk 0:00:08]} 23. Qe2 {[%clk 0:00:12]}  Qxe2# {[%clk 0:00:09]} 0-1


[Site "https://www.chess.com"]